bitfinex-derivatives/quotes_BNBF0:USTF0_20250116
["timestamp","ask_amount","ask_price","bid_price","bid_amount"]
[1737046077045,1.04978261,713.28,712.43,0.48839851]
[1737046077249,1.04978261,713.28,712.44,0.48839851]
[1737046077450,1.04978261,713.28,712.45,0.48839851]
[1737046077652,1.04978261,713.28,712.46,0.48839851]
[1737046077951,1.04978261,713.28,712.47,0.48839851]
[1737046078151,1.04978261,713.24,712.48,0.48839851]
[1737046078454,1.04978261,713.24,711.85,1.04252781]
[1737046078652,1.04978261,713.24,711.86,0.7460297]
[1737046078850,1.04978261,713.21,711.87,0.7460297]
[1737046079050,1.04978261,713.21,711.88,0.7460297]
[1737046079250,1.04978261,713.21,711.89,0.7460297]
[1737046079451,1.04978261,713.21,711.9,0.7460297]
[1737046079647,1.04978261,713.21,711.91,0.7460297]
[1737046079847,1.04978261,713.21,711.82,0.2809699]
[1737046079848,1.04978261,713.28,711.92,0.7460297]
[1737046080045,1.04978261,713.28,711.93,0.48599519]
[1737046080250,1.04978261,713.28,711.94,0.48599519]
[1737046080447,1.04978261,713.28,711.95,0.48599519]
[1737046080751,1.04978261,713.27,711.96,0.48599519]
[1737046080947,1.04978261,713.27,711.97,0.48599519]
[1737046081153,1.04978261,713.27,711.98,0.48599519]
[1737046081354,1.04978261,713.27,711.99,0.48593923]
[1737046081554,1.04978261,713.27,712.0,0.48593923]
[1737046081757,1.04978261,713.27,712.01,0.48593923]
[1737046081952,1.04978261,713.22,712.02,0.48593923]
[1737046082147,1.04978261,713.22,712.03,0.48593923]
[1737046082354,1.04978261,713.22,712.04,0.48593923]
[1737046082554,1.04978261,713.22,712.05,0.48593923]
[1737046082854,1.04978261,713.22,712.06,0.48593923]
[1737046083055,1.04978261,713.22,712.07,0.48593923]
[1737046083257,1.04978261,713.23,712.08,0.48593923]
[1737046083452,1.04978261,713.23,712.09,0.48593923]
[1737046083757,1.04978261,713.23,711.94,1.04252781]
[1737046083758,1.04978261,713.23,712.1,0.48593923]
[1737046083956,1.04978261,713.23,712.11,0.48593923]
[1737046084151,1.04978261,713.23,712.12,0.48593923]
[1737046084353,1.04978261,713.23,712.13,0.48593923]
[1737046084552,1.04978261,713.23,712.14,0.48593923]
[1737046084754,0.28036728,713.35,711.82,0.2809699]
[1737046084755,1.04978261,713.18,712.15,0.48593923]
[1737046084951,1.04978261,713.18,712.16,0.48593923]
[1737046085157,1.04978261,713.18,712.17,0.48639585]
[1737046085354,1.04978261,713.18,712.18,0.48639585]
[1737046085553,1.04978261,713.18,712.19,0.48639585]
[1737046085751,1.04978261,713.11,712.2,0.48639585]
[1737046085954,1.04978261,713.11,712.21,0.48639585]
[1737046086154,1.04978261,713.11,712.22,0.48639585]
[1737046086359,1.04978261,713.11,712.23,0.48639585]
[1737046086557,1.04978261,713.11,712.24,0.48639585]
[1737046086756,1.04978261,713.17,712.25,0.48639585]
[1737046086958,1.04978261,713.17,712.26,0.48639585]
[1737046087158,1.04978261,713.17,712.27,0.48639585]
[1737046087357,1.04978261,713.17,712.28,0.48639585]
[1737046087657,1.04978261,713.17,712.29,0.48639585]
[1737046087859,1.04978261,713.17,712.3,0.48639585]
[1737046088059,1.04978261,713.17,712.31,0.48639585]
[1737046088358,1.04978261,713.33,712.32,0.48639585]
[1737046088551,1.04978261,713.33,712.33,0.48639585]
[1737046088753,1.04978261,713.33,712.34,0.48639585]
[1737046088952,1.04978261,713.33,712.35,0.48639585]
[1737046089153,0.28036728,713.35,712.36,0.74420716]
[1737046089353,0.28036728,713.35,712.37,0.48639585]
[1737046089555,0.28036728,713.35,712.38,0.48639585]
[1737046089761,0.28036728,713.35,712.39,0.48639585]
[1737046090061,0.28036728,713.35,712.4,0.48639585]
[1737046090261,0.28036728,713.35,712.41,0.48639585]
[1737046090556,0.28036728,713.35,712.42,0.48639585]
[1737046090759,0.28036728,713.35,712.43,0.48639585]
[1737046090953,0.28036728,713.35,712.44,0.48639585]
[1737046091152,0.28036728,713.35,712.45,0.48639585]
[1737046091357,0.28036728,713.35,712.46,0.48639585]
[1737046091556,0.28036728,713.35,712.47,0.48639585]
[1737046091756,0.28036728,713.35,712.2,1.04252781]
[1737046091757,0.28036728,713.35,712.48,0.48639585]
[1737046091955,0.28036728,713.35,712.49,0.48639585]
[1737046092155,0.28036728,713.35,712.5,0.48639585]
[1737046092360,0.28036728,713.35,712.51,0.48639585]
[1737046092559,0.28036728,713.35,712.52,0.48639585]
[1737046092761,0.28036728,713.35,712.53,0.48639585]
[1737046093060,0.28036728,713.35,712.54,0.48639585]
[1737046093255,0.28036728,713.35,712.55,0.48639585]
[1737046093463,0.28036728,713.35,712.56,0.48639585]
[1737046093662,0.28036728,713.35,712.57,0.48639585]
[1737046093863,0.28036728,713.35,712.58,0.48639585]
[1737046094063,0.28036728,713.35,712.59,0.48639585]
[1737046094362,0.28036728,713.35,711.82,0.2809699]
[1737046094363,0.28036728,713.35,712.6,0.48639585]
[1737046094564,0.28036728,713.35,712.61,0.48639585]
[1737046094862,0.28036728,713.35,712.62,0.48639585]
[1737046095062,0.28036728,713.35,712.63,0.48639585]
[1737046095262,0.28036728,713.35,712.64,0.48639585]
[1737046095464,0.28036728,713.35,712.65,0.48639585]
[1737046095665,0.28036728,713.35,712.66,0.48639585]
[1737046095961,0.28036728,713.35,712.67,0.48639585]
[1737046096162,0.28036728,713.35,712.68,0.48639585]
[1737046096358,0.28036728,713.35,712.69,0.48639585]
[1737046096565,0.28036728,713.35,712.7,0.48639585]
[1737046096764,0.28036728,713.35,712.71,0.48639585]
[1737046096965,0.28036728,713.35,712.72,0.48639585]
[1737046097160,0.28036728,713.35,712.73,0.48639585]
[1737046097359,0.28036728,713.35,712.11,1.04252781]
[1737046097565,0.28036728,713.35,712.12,0.25781175]
[1737046097765,0.28036728,713.35,712.13,0.28084759]
[1737046097962,0.28036728,713.35,712.14,0.25781175]
[1737046098463,0.28036728,713.35,712.15,0.48495221]
[1737046098661,0.28036728,713.35,712.16,0.74276396]
[1737046098966,0.28036728,713.35,712.17,1.02359578]
[1737046099166,0.28036728,713.35,712.18,0.74276396]
[1737046099468,0.28036728,713.35,712.19,0.74276396]
[1737046099663,0.28036728,713.35,712.2,0.74276396]
[1737046099867,0.28036728,713.35,712.21,0.74276396]
[1737046100062,0.28036728,713.35,712.22,0.74276396]
[1737046100266,0.28036728,713.35,712.23,0.74289031]
[1737046100565,0.28036728,713.35,712.24,0.74289031]
[1737046100766,0.28036728,713.35,712.17,0.28083182]
[1737046100767,0.28036728,713.35,712.25,0.74289031]
[1737046100960,0.28036728,713.35,712.26,0.74289031]
[1737046101159,0.28036728,713.35,712.27,0.74289031]
[1737046101360,0.28036728,713.35,712.28,0.74289031]
[1737046101564,0.28036728,713.35,712.29,0.74289031]
[1737046101766,0.28036728,713.35,712.3,0.74289031]
[1737046101966,0.28036728,713.35,712.31,0.74289031]
[1737046102167,0.28036728,713.35,712.17,0.28083182]
[1737046102168,0.28036728,713.35,712.32,0.74289031]
[1737046102367,0.28036728,713.35,712.33,0.74289031]
[1737046102560,0.28036728,713.35,712.34,0.74289031]
[1737046102765,0.28036728,713.35,712.35,0.74289031]
[1737046102961,0.28036728,713.35,712.36,0.74289031]
[1737046103166,0.28036728,713.35,712.37,0.74289031]
[1737046103363,0.28036728,713.35,712.38,0.74289031]
[1737046103666,0.28036728,713.35,712.17,0.28083182]
[1737046103667,0.28036728,713.35,712.39,0.74289031]
[1737046103863,0.28036728,713.35,712.4,0.7428889]
[1737046104067,0.28036728,713.35,712.41,0.48507856]
[1737046104269,0.28036728,713.35,712.42,0.48507856]
[1737046104467,0.28036728,713.35,712.43,0.48507856]
[1737046104669,0.28036728,713.35,712.44,0.48507856]
[1737046104869,0.28036728,713.35,712.45,0.48507856]
[1737046105166,0.28036728,713.35,712.46,0.48507856]
[1737046105366,0.28036728,713.35,712.47,0.48507856]
[1737046105567,0.28036728,713.35,712.48,0.48507856]
[1737046105768,0.28036728,713.35,712.49,0.48507856]
[1737046105968,0.28036728,713.35,712.5,0.48507856]
[1737046106169,0.28036728,713.35,712.51,0.48507856]
[1737046106373,0.28036728,713.35,712.52,0.48507856]
[1737046106569,0.28036728,713.35,712.53,0.48507856]
[1737046106769,0.28036728,713.35,712.54,0.48507856]
[1737046106969,0.28036728,713.35,712.55,0.48507856]
[1737046107169,0.28036728,713.35,712.56,0.48507856]
[1737046107367,0.28036728,713.35,712.57,0.48507856]
[1737046107568,0.28036728,713.35,712.58,0.48507856]
[1737046107769,0.28036728,713.35,712.59,0.48507856]
[1737046107969,0.28036728,713.35,712.6,0.48507856]
[1737046108270,0.28036728,713.35,712.61,0.48507856]
[1737046108471,0.28036728,713.35,712.62,0.48507856]
[1737046108666,0.28036728,713.35,712.63,0.48507856]
[1737046108869,0.28036728,713.35,712.64,0.48507856]
[1737046109172,0.28036728,713.35,712.17,0.28083182]
[1737046109173,0.28036728,713.35,712.65,0.48507856]
[1737046109372,0.28036728,713.35,712.66,0.48507856]
[1737046109568,0.28036728,713.35,712.67,0.48507856]
[1737046109773,0.28036728,713.35,712.68,0.48507856]
[1737046110072,0.28036728,713.35,712.69,0.48507856]
[1737046110266,0.28036728,713.35,712.7,0.48507856]
[1737046110470,0.28036728,713.35,712.71,0.48507856]
[1737046110668,0.28036728,713.35,712.72,0.48507856]
[1737046110966,0.28036728,713.35,712.73,0.48507856]
[1737046111166,0.28036728,713.35,712.74,0.48507856]
[1737046111374,0.28036728,713.35,712.75,0.48507856]
[1737046111572,0.28036728,713.35,712.17,0.28083182]
[1737046111765,0.28036728,713.35,712.18,0.74340871]
[1737046111966,0.28036728,713.35,712.19,0.74343201]
[1737046112167,0.28036728,713.35,712.2,0.48554464]
[1737046112367,0.28036728,713.35,712.21,0.48554464]
[1737046112578,1.04978261,713.34,712.22,0.48554464]
[1737046112765,1.04978261,713.34,712.17,0.28083182]
[1737046112766,1.04978261,713.34,712.23,0.48554464]
[1737046113072,1.04978261,713.34,712.24,0.48554464]
[1737046113371,1.04978261,713.34,712.25,0.48554464]
[1737046113673,1.04978261,713.34,712.26,0.48554464]
[1737046113674,1.04978261,713.27,712.26,0.48554464]
[1737046113971,1.04978261,713.27,712.17,0.28083182]
[1737046113972,1.04978261,713.27,712.27,0.48554464]
[1737046114175,1.04978261,713.27,712.28,0.48554464]
[1737046114372,1.04978261,713.27,712.29,0.48554464]
[1737046114671,1.04978261,713.25,712.3,0.48554464]
[1737046114873,1.04978261,713.25,712.17,0.28083182]
[1737046114874,1.04978261,713.25,712.31,0.48554464]
[1737046115075,1.04978261,713.25,712.17,0.28083182]
[1737046115076,1.04978261,713.25,712.32,0.48554464]
[1737046115272,1.04978261,713.25,712.33,0.48554464]
[1737046115470,1.04978261,713.25,712.34,0.48554464]
[1737046115673,1.04978261,713.25,712.35,0.48554464]
[1737046115874,1.04978261,713.27,712.36,0.48554464]
[1737046116072,1.04978261,713.27,712.37,0.48554464]
[1737046116274,1.04978261,713.27,712.38,0.48554464]
[1737046116567,1.04978261,713.27,712.39,0.48554464]
[1737046116776,1.04978261,713.27,712.17,0.28083182]
[1737046116777,1.04978261,713.27,712.4,0.48554464]
[1737046117075,1.04978261,713.26,712.17,0.28083182]
[1737046117374,1.04978261,713.26,712.18,0.4864367]
[1737046117571,1.04978261,713.26,712.17,0.28083182]
[1737046117572,1.04978261,713.26,712.19,0.4864367]
[1737046117773,1.04978261,713.26,712.2,0.4864367]
[1737046117968,1.04978261,713.26,712.21,0.4864367]
[1737046118173,1.04978261,713.26,712.22,0.4864367]
[1737046118374,1.04978261,713.26,712.23,0.4864367]
[1737046118574,1.04978261,713.26,712.17,0.28083182]
[1737046118575,1.04978261,713.26,712.24,0.4864367]
[1737046118776,1.04978261,713.26,712.25,0.4864367]
[1737046118975,1.04978261,713.26,712.26,0.4864367]
[1737046119177,1.46499586,713.34,712.27,0.4864367]
[1737046119178,1.04978261,713.29,712.27,0.4864367]
[1737046119376,1.04978261,713.29,712.28,0.4864367]
[1737046119677,1.04978261,713.29,712.29,0.4864367]
[1737046119877,1.04978261,713.29,712.3,0.4864367]
[1737046120078,1.04978261,713.29,712.31,0.4864367]
[1737046120274,1.04978261,713.29,712.32,0.4864367]
[1737046120473,1.04978261,713.29,712.33,0.4864367]
[1737046120771,1.04978261,713.29,712.34,0.4864367]
[1737046120975,1.04978261,713.29,712.35,0.4864367]
[1737046121179,0.28039479,713.28,712.36,0.4864367]
[1737046121380,0.28039479,713.28,712.37,0.4864367]
[1737046121679,0.28039479,713.28,712.38,0.4864367]
[1737046121874,0.28039479,713.28,712.39,0.4864367]
[1737046122074,0.28039479,713.28,712.17,0.28083182]
[1737046122075,0.28039479,713.28,712.4,0.4864367]
[1737046122278,0.28039479,713.28,712.41,0.4864367]
[1737046122474,0.28039479,713.28,712.42,0.4864367]
[1737046122679,0.28039479,713.28,712.43,0.4864367]
[1737046122983,0.28039479,713.28,712.17,0.28083182]
[1737046123179,0.28039479,713.28,712.18,0.4850247]
[1737046123376,0.28039479,713.28,712.19,0.4850247]
[1737046123580,0.28039479,713.28,712.2,0.4850247]
[1737046123781,0.28039479,713.28,712.17,0.28083182]
[1737046123782,0.28039479,713.28,712.21,0.4850247]
[1737046123980,0.28039479,713.28,712.22,0.4850247]
[1737046124185,0.28039479,713.28,712.23,0.4850247]
[1737046124377,0.28039479,713.28,712.24,0.4850247]
[1737046124582,0.28039479,713.28,712.25,0.4850247]
[1737046124782,0.28039479,713.28,712.26,0.4850247]
[1737046124977,0.28039479,713.28,712.27,0.4850247]
[1737046125176,0.28039479,713.28,712.28,0.4850247]
[1737046125377,0.28039479,713.28,712.29,0.4850247]
[1737046125582,0.28039479,713.28,712.3,0.4850247]
[1737046125782,0.28039479,713.28,712.31,0.4850247]
[1737046125983,0.28039479,713.28,712.32,0.4850247]
[1737046126179,0.28039479,713.28,712.33,0.4850247]
[1737046126379,0.28039479,713.28,712.34,0.4850247]
[1737046126686,0.28039479,713.28,712.35,0.48488344]
[1737046126984,0.28039479,713.28,712.17,0.28083182]
[1737046126985,0.28039479,713.28,712.36,0.48488344]
[1737046127185,0.28039479,713.28,712.37,0.48488344]
[1737046127487,0.28039479,713.28,712.38,0.48488344]
[1737046127685,0.28039479,713.28,712.39,0.48488344]
[1737046127886,0.28039479,713.28,712.4,0.48488344]
[1737046128086,0.28039479,713.28,712.41,0.48488344]
[1737046128286,0.28039479,713.28,712.42,0.48488344]
[1737046128487,0.28039479,713.28,712.43,0.48488344]
[1737046128687,0.28039479,713.28,712.44,0.48488344]
[1737046128883,0.28039479,713.28,712.17,0.28083182]
[1737046129082,0.28039479,713.28,712.18,0.48509853]
[1737046129285,0.28039479,713.28,712.19,0.48509853]
[1737046129484,0.28039479,713.28,712.2,0.48509853]
[1737046129786,0.28039479,713.28,712.21,0.48509853]
[1737046129986,0.28039479,713.28,712.22,0.48509853]
[1737046130185,0.28039479,713.28,712.23,0.48509853]
[1737046130386,0.28039479,713.28,712.24,0.48509853]
[1737046130586,0.28039479,713.28,712.25,0.48509853]
[1737046130781,0.28039479,713.28,712.26,0.48509853]
[1737046130983,0.28039479,713.28,712.27,0.48509853]
[1737046131187,0.28039479,713.28,712.28,0.48509853]
[1737046131488,0.28039479,713.28,712.29,0.48509853]
[1737046131689,1.04978261,713.26,712.3,0.48522326]
[1737046131888,1.04978261,713.26,711.52,1.04252781]
[1737046132089,1.04978261,713.26,711.53,0.74324325]
[1737046132290,1.46548427,713.25,711.55,0.28107652]
[1737046132485,1.46548427,713.25,711.56,0.74324325]
[1737046132686,1.04978261,713.23,711.57,0.74324325]
[1737046132985,1.04978261,713.23,711.58,0.74324325]
[1737046133191,1.04978261,713.23,711.59,0.74324325]
[1737046133390,1.04978261,713.23,711.6,0.74324325]
[1737046133593,1.46548427,713.25,711.61,0.74324325]
[1737046133791,1.46548427,713.25,711.62,0.74324325]
[1737046133988,1.46548427,713.25,711.63,0.74324325]
[1737046134287,1.46548427,713.25,711.64,0.74323748]
[1737046134485,1.46548427,713.25,711.65,0.74323748]
[1737046134689,1.46548427,713.25,711.66,0.74323748]
[1737046134886,1.46548427,713.25,711.67,0.74323748]
[1737046135087,1.46548427,713.25,711.68,0.74323748]
[1737046135290,1.46548427,713.25,711.69,0.74323748]
[1737046135589,1.46548427,713.25,711.7,0.48524493]
[1737046135885,1.46548427,713.25,711.71,0.48524493]
[1737046136091,1.46548427,713.25,711.72,0.48524493]
[1737046136292,1.46548427,713.25,711.73,0.48524493]
[1737046136594,1.46548427,713.25,711.74,0.48524493]
[1737046136791,1.46548427,713.25,711.75,0.48524493]
[1737046136989,1.46548427,713.25,711.76,0.48524493]
[1737046137194,1.46548427,713.25,711.77,0.48524493]
[1737046137389,1.46548427,713.25,711.78,0.48524493]
[1737046137594,1.46548427,713.25,711.79,0.48524493]
[1737046137796,1.46548427,713.25,711.8,0.48524493]
[1737046138094,1.46548427,713.25,711.81,0.48524493]
[1737046138295,1.46548427,713.25,711.82,0.48524493]
[1737046138494,1.46548427,713.25,711.83,0.48524493]
[1737046138695,0.28041052,713.24,711.84,0.48524493]
[1737046138896,0.28041052,713.24,711.85,0.48524493]
[1737046139196,0.28041052,713.24,711.86,0.48524493]
[1737046140296,0.28041052,713.24,711.55,0.28107652]
[1737046140297,0.28041052,713.24,711.87,0.48524493]
[1737046140497,0.28041052,713.24,711.88,0.48524493]
[1737046140498,1.04978261,712.89,711.88,0.48524493]
[1737046140696,1.04978261,712.89,711.89,0.48524493]
[1737046140890,1.04978261,712.89,711.9,0.48524493]
[1737046141093,1.04978261,712.89,711.91,0.48524493]
[1737046141291,1.04978261,712.89,711.92,0.48529269]
[1737046141598,1.04978261,712.96,711.55,0.28107652]
[1737046141796,1.04978261,712.96,711.56,0.48528159]
[1737046141994,1.04978261,712.96,711.57,0.48528159]
[1737046142195,1.04978261,712.96,711.55,0.28107652]
[1737046142196,1.04978261,712.96,711.58,0.48528159]
[1737046142497,1.04978261,712.96,711.59,0.48528159]
[1737046142699,1.04978261,713.02,711.6,0.48528159]
[1737046142891,1.04978261,713.02,711.55,0.28107652]
[1737046142892,1.04978261,713.02,711.61,0.48528159]
[1737046143097,1.04978261,713.02,711.62,0.48528159]
[1737046143295,1.04978261,713.02,711.63,0.48528159]
[1737046143499,1.04978261,713.02,711.64,0.48528159]
[1737046143798,1.04978261,713.02,711.65,0.48528159]
[1737046144103,1.04978261,713.08,711.66,0.48528159]
[1737046144294,1.04978261,713.08,711.67,0.48528159]
[1737046144601,1.04978261,713.08,711.68,0.48528159]
[1737046144899,1.04978261,713.08,711.69,0.48528159]
[1737046145200,1.04978261,713.08,711.7,0.48528159]
[1737046145396,0.2804813,713.06,711.71,0.48528159]
[1737046145601,1.04978261,713.02,711.72,0.48528159]
[1737046145800,1.04978261,713.02,711.73,0.48528159]
[1737046145999,1.04978261,713.02,711.74,0.48528159]
[1737046146204,1.04978261,713.02,711.75,0.48528159]
[1737046146405,1.04978261,713.02,711.76,0.48528159]
[1737046146605,1.04978261,713.02,711.77,0.48528159]
[1737046146900,1.04978261,713.02,711.78,0.48528159]
[1737046147104,1.04978261,713.02,711.79,0.48528159]
[1737046147306,1.04978261,713.02,711.8,0.48528159]
[1737046147508,0.2804813,713.06,711.81,0.48528159]
[1737046147706,0.2804813,713.06,711.82,0.48528159]
[1737046147903,0.2804813,713.06,711.83,0.74331412]
[1737046148108,0.2804813,713.06,711.55,0.28107652]
[1737046148109,0.2804813,713.06,711.84,0.74331412]
[1737046148310,0.2804813,713.06,711.85,0.74331412]
[1737046148509,0.2804813,713.06,711.86,0.48528159]
[1737046148810,0.2804813,713.06,711.55,0.28107652]
[1737046148811,0.2804813,713.06,711.87,0.48528159]
[1737046149010,0.2804813,713.06,711.88,0.48528159]
[1737046149211,0.2804813,713.06,711.89,0.48528159]
[1737046149511,0.2804813,713.06,711.9,0.48528159]
[1737046149705,0.2804813,713.06,711.91,0.48528159]
[1737046149909,0.2804813,713.06,711.92,0.48528159]
[1737046150210,0.2804813,713.06,711.93,0.48528159]
[1737046150410,0.2804813,713.06,711.94,0.48350532]
[1737046150604,0.2804813,713.06,711.95,0.48350532]
[1737046150807,0.2804813,713.06,711.55,0.28107652]
[1737046150808,0.2804813,713.06,711.96,0.48350532]
[1737046151007,0.2804813,713.06,711.97,0.48350532]
[1737046151310,0.2804813,713.06,711.98,0.48350532]
[1737046151503,0.2804813,713.06,711.99,0.48350532]
[1737046151706,0.2804813,713.06,712.0,0.48350532]
[1737046151907,0.2804813,713.06,712.01,0.48350532]
[1737046152203,0.2804813,713.06,712.02,0.48350532]
[1737046152405,0.2804813,713.06,712.03,0.48350532]
[1737046152603,0.2804813,713.06,711.55,0.28107652]
[1737046152604,0.2804813,713.06,712.04,0.48350532]
[1737046152810,0.2804813,713.06,712.05,0.48350532]
[1737046153010,0.2804813,713.06,712.06,0.48350532]
[1737046153212,0.2804813,713.06,712.07,0.48350532]
[1737046153411,0.2804813,713.06,711.55,0.28107652]
[1737046153412,0.2804813,713.06,712.08,0.48350532]
[1737046153614,0.2804813,713.06,712.09,0.48350532]
[1737046153814,0.2804813,713.06,712.1,0.48350532]
[1737046154012,0.2804813,713.06,712.11,0.48350532]
[1737046154212,0.2804813,713.06,712.12,0.48350532]
[1737046154513,0.2804813,713.06,712.13,0.48350532]
[1737046154713,0.2804813,713.06,712.14,0.48350532]
[1737046154915,0.2804813,713.06,712.15,0.48350532]
[1737046155114,0.2804813,713.06,712.16,0.48350532]
[1737046155315,0.2804813,713.06,712.17,0.48350532]
[1737046155511,0.2804813,713.06,712.18,0.48350532]
[1737046155711,0.2804813,713.06,712.19,0.48350532]
[1737046155909,0.2804813,713.06,711.55,0.28107652]
[1737046156110,0.2804813,713.06,711.56,0.7417584]
[1737046156313,0.2804813,713.06,711.57,0.7417584]
[1737046156611,0.2804813,713.06,711.58,0.7417584]
[1737046156810,0.2804813,713.06,711.59,0.7417584]
[1737046157009,0.2804813,713.06,711.55,0.28107652]
[1737046157010,0.2804813,713.06,711.6,0.7417584]
[1737046157212,0.2804813,713.06,711.61,1.02281122]
[1737046157414,0.2804813,713.06,711.62,0.7417584]
[1737046157615,0.2804813,713.06,711.63,0.7417584]
[1737046157815,0.2804813,713.06,711.64,0.7417584]
[1737046158016,0.2804813,713.06,711.65,0.7417584]
[1737046158216,0.2804813,713.06,711.61,0.28105282]
[1737046158217,0.2804813,713.06,711.66,0.7417584]
[1737046158419,0.2804813,713.06,711.67,0.7417584]
[1737046158613,0.2804813,713.06,711.68,0.48373768]
[1737046158810,0.2804813,713.06,711.69,0.48373768]
[1737046159016,0.2804813,713.06,711.7,0.48373768]
[1737046159212,0.2804813,713.06,711.71,0.48373768]
[1737046159418,0.2804813,713.06,711.61,0.28105282]
[1737046159419,0.2804813,713.06,711.72,0.48373768]
[1737046159620,0.2804813,713.06,711.73,0.48373768]
[1737046159821,0.2804813,713.06,711.74,0.48373768]
[1737046160118,0.2804813,713.06,711.61,0.28105282]
[1737046160119,0.2804813,713.06,711.75,0.48373768]
[1737046160417,0.2804813,713.06,711.76,0.48373768]
[1737046160614,0.2804813,713.06,711.61,0.28105282]
[1737046160615,0.2804813,713.06,711.77,0.48373768]
[1737046160917,0.2804813,713.06,711.78,0.48373768]
[1737046161118,0.2804813,713.06,711.79,0.48373768]
[1737046161318,0.2804813,713.06,711.8,0.48373768]
[1737046161621,0.2804813,713.06,711.81,0.48373768]
[1737046161820,0.2804813,713.06,711.82,0.48373768]
[1737046162020,0.2804813,713.06,711.83,0.48373768]
[1737046162215,0.2804813,713.06,711.84,0.48373768]
[1737046162419,0.2804813,713.06,711.85,0.48373768]
[1737046162619,0.2804813,713.06,711.86,0.48373768]
[1737046162921,0.2804813,713.06,711.87,0.48373768]
[1737046163116,0.2804813,713.06,711.88,0.48373768]
[1737046163319,0.2804813,713.06,711.89,0.48373768]
[1737046163616,0.2804813,713.06,711.9,0.48373768]
[1737046163819,0.2804813,713.06,711.91,0.48373768]
[1737046164022,0.2804813,713.06,711.92,0.48373768]
[1737046164321,0.2804813,713.06,711.93,0.48373768]
[1737046164522,0.2804813,713.06,711.61,0.28105282]
[1737046164523,0.2804813,713.06,711.94,0.48373768]
[1737046164717,0.2804813,713.06,711.95,0.48373768]
[1737046164924,0.2804813,713.06,711.96,0.48373768]
[1737046165216,0.2804813,713.06,711.97,0.48373768]
[1737046165417,0.2804813,713.06,711.98,0.48373768]
[1737046165622,0.2804813,713.06,711.99,0.48373768]
[1737046165824,0.2804813,713.06,712.0,0.48373768]
[1737046166018,0.2804813,713.06,712.01,0.48373768]
[1737046166218,0.2804813,713.06,712.02,0.48373768]
[1737046166419,0.2804813,713.06,712.03,0.48373768]
[1737046166621,0.2804813,713.06,712.04,0.48373768]
[1737046166818,0.2804813,713.06,712.05,0.48373768]
[1737046167123,0.2804813,713.06,712.06,0.48373768]
[1737046167320,0.2804813,713.06,712.07,0.48373768]
[1737046167517,0.2804813,713.06,712.08,0.48373768]
[1737046167719,0.2804813,713.06,712.09,0.48373768]
[1737046167920,0.2804813,713.06,712.1,0.48373768]
[1737046168125,0.2804813,713.06,712.11,0.48373768]
[1737046168322,0.2804813,713.06,712.12,0.48373768]
[1737046168524,0.2804813,713.06,712.13,0.48373768]
[1737046168721,0.2804813,713.06,712.14,0.48373768]
[1737046168925,0.2804813,713.06,712.15,0.48373768]
[1737046169224,0.2804813,713.06,712.16,0.48556486]
[1737046169423,0.2804813,713.06,712.17,0.48556486]
[1737046169627,0.2804813,713.06,712.18,0.48556486]
[1737046169821,0.2804813,713.06,712.19,0.48556486]
[1737046170022,0.2804813,713.06,712.2,0.48556486]
[1737046170327,0.2804813,713.06,712.21,0.48556486]
[1737046170522,0.2804813,713.06,712.22,0.48556486]
[1737046170823,0.2804813,713.06,712.23,0.48556486]
[1737046171028,0.2804813,713.06,712.24,0.48556486]
[1737046171224,0.2804813,713.06,712.25,0.48556486]
[1737046171429,0.2804813,713.06,712.26,0.48556486]
[1737046171624,0.2804813,713.06,712.27,0.48556486]
[1737046171822,0.2804813,713.06,712.28,0.48556486]
[1737046172026,0.2804813,713.06,712.29,0.48556486]
[1737046172223,0.2804813,713.06,712.3,0.48556486]
[1737046172423,0.2804813,713.06,712.31,0.48556486]
[1737046172628,0.2804813,713.06,712.32,0.48556486]
[1737046172822,0.2804813,713.06,712.33,0.48556486]
[1737046173027,0.2804813,713.06,712.34,0.48556486]
[1737046173228,0.2804813,713.06,712.35,0.48556486]
[1737046173526,0.2804813,713.06,712.36,0.48556486]
[1737046173827,0.2804813,713.06,712.37,0.48556486]
[1737046174027,0.2804813,713.06,712.38,0.48556486]
[1737046174322,0.2804813,713.06,712.39,0.48556486]
[1737046174529,0.2804813,713.06,712.4,0.48556486]
[1737046174729,0.2804813,713.06,712.41,0.48556486]
[1737046174930,0.2804813,713.06,712.42,0.48556486]
[1737046175129,0.2804813,713.06,712.43,0.48556486]
[1737046175329,0.2804813,713.06,712.44,0.48556486]
[1737046175530,0.2804813,713.06,712.45,0.48556486]
[1737046175731,0.2804813,713.06,711.62,1.04252781]
[1737046175931,0.2804813,713.06,705.98,5.36558206]
[1737046175932,0.2804813,713.06,711.76,1.04252781]
[1737046176125,0.2804813,713.06,711.77,0.74436201]
[1737046176330,0.2804813,713.06,711.78,0.74436201]
[1737046176534,0.2804813,713.06,711.79,0.74436201]
[1737046176731,0.2804813,713.06,711.8,1.02533981]
[1737046176926,0.2804813,713.06,711.81,0.74436201]
[1737046177130,0.2804813,713.06,711.82,1.02533191]
[1737046177331,0.2804813,713.06,711.83,0.74436281]
[1737046177529,0.2804813,713.06,711.84,0.74436281]
[1737046177728,0.2804813,713.06,711.85,0.74436281]
[1737046177933,0.2804813,713.06,711.86,0.74436281]
[1737046178135,0.2804813,713.06,711.87,0.74436281]
[1737046178335,0.2804813,713.06,711.88,0.74436281]